[Event "III Menorca Open-A 2024"]
[Site "Ciutadella Menorca"]
[Date "2024.04.02"]
[Round "1.8"]
[White "Lagarde, Maxime"]
[Black "Badacsonyi, Stanley"]
[Result "1/2-1/2"]
[ECO "A36"]
[WhiteElo "2638"]
[BlackElo "2196"]
[Annotator "TA"]
[PlyCount "51"]
[EventDate "2024.04.02"]
[EventType "swiss"]
[EventCountry "ESP"]
[SourceTitle "playchess.com"]
[Source "ChessBase"]
[SourceQuality "1"]
[TimeControl "5400+30"]

{[%evp 24,51,19,21,24,0,0,0,16,-37,-35,-43,-37,-31,-51,-50,-35,-36,-35,-58,-48,-97,-90,-106,-108,-95,-107,-101,-101,-137]} 1. c4 {[%emt 0:00:02]} Nf6 {[%emt 0:00:09]} 2. Nc3 {[%emt 0:00:06]} g6 {[%emt 0:00:12]} 3. g3 {[%emt 0:01:10]} Bg7 {[%emt 0:00:10]} 4. Bg2 {[%emt 0:00:06]} O-O {[%emt 0:00:09]} 5. e4 {[%emt 0:01:08]} d6 {[%emt 0:00:19]} 6. Nge2 {[%emt 0:00:08]} c5 {[%emt 0:00:42]} 7. d3 {[%emt 0:00:27]} Nc6 {[%emt 0:00:10]} 8. h3 {[%emt 0:01:03]} a6 {[%emt 0:04:41]} 9. a4 {[%emt 0:00:46]} Ne8 {[%emt 0:01:58][%cal Bf6e8,Be8c7,Bc7e6][%mdl 32]} 10. Be3 {[%emt 0:00:18]} Rb8 {[%emt 0:01:15]} 11. d4 {[%emt 0:04:08]} cxd4 {[%emt 0:01:48]} 12. Nxd4 {[%emt 0:00:05][%cal Be2d4,Bd4b3,Bb3d2,Bd2c4][%mdl 32]} Nc7 {[%emt 0:01:24]} 13. O-O {[%emt 0:08:25]} Bd7 {[%emt 0:04:02]} 14. a5 {[%emt 0:02:52]} Ne6 {[%emt 0:08:34]} 15. Nb3 {[%emt 0:01:02]} Ne5 {[%emt 0:04:21] The position is equal.} 16. Qe2 {[%emt 0:07:36]} (16. Nd2 $11) 16... Rc8 $1 $15 {[%emt 0:00:49]} 17. Nd2 {[%emt 0:02:46] [#]} Nxc4 $1 {[%emt 0:09:04]} 18. Nxc4 {[%emt 0:00:06]} Bxc3 $1 {[%emt 0:00:07]} 19. Bb6 {[%emt 0:00:31]} Qe8 {[%emt 0:00:13][%cal Od7b5] aiming for ...Bb5!} ({Don't blunder} 19... Nd4 $2 20. Qd1 Qe8 21. bxc3 $18) 20. bxc3 {[%emt 0:00:33] And now Ne3 would win.} Bb5 {[%emt 0:00:17]} 21. Qe3 {[%emt 0:00:12]} Rxc4 {[%emt 0:01:43]} 22. Rfe1 {[%emt 0:06:21]} (22. Rfd1 $15) 22... Qc8 $17 {[%emt 0:02:36] Black is better.} 23. Rac1 {[%emt 0:03:55]} Nc5 {[%emt 0:03:13]} 24. e5 {[%emt 0:05:42]} Bc6 {[%emt 0:03:21] ...Bxg2 would now be deadly.} 25. exd6 {[%emt 0:01:43]} exd6 {[%emt 0:00:39]} 26. Bf1 {[%emt 0:05:32] White did not feel at home in the position after the opening.   Weighted Error Value: White=0.18 (very precise) /Black=0.01 (flawless) .  Mistake:       	White=2     	---        Inaccurate:     	White=1     	---        OK:         	White=4     	Black=5      Best:        	---       	Black=2      Strong:       	---       	Black=2      Brilliant:      	---       	Black=1} 1/2-1/2

[Event "III Menorca Open-A 2024"]
[Site "Ciutadella Menorca"]
[Date "2024.04.02"]
[Round "1.9"]
[White "Aymerich Verdaguer, Eduard"]
[Black "Warmerdam, Max"]
[Result "0-1"]
[ECO "E48"]
[WhiteElo "2199"]
[BlackElo "2628"]
[Annotator "TA"]
[PlyCount "84"]
[EventDate "2024.04.02"]
[EventType "swiss"]
[EventCountry "ESP"]
[SourceTitle "playchess.com"]
[Source "ChessBase"]
[SourceQuality "1"]
[TimeControl "5400+30"]

{[%evp 11,84,0,11,0,-4,0,0,0,10,0,0,5,2,7,12,28,17,0,16,0,0,0,7,0,62,73,106,52,45,42,104,69,72,65,66,65,94,67,72,88,82,45,54,63,71,71,62,65,53,2,10,0,14,-63,-62,-53,0,0,0,0,0,0,0,0,0,-262,-259,-1131,-1124,-29990,-29991,-29992,-29993,-29996,-29997]} 1. d4 {[%emt 0:00:02]} Nf6 {[%emt 0:00:40]} 2. c4 {[%emt 0:00:48]} e6 {[%emt 0:00:07]} 3. Nc3 {[%emt 0:00:41]} Bb4 {[%emt 0:00:36]} 4. e3 {[%emt 0:02:51]} O-O {[%emt 0:00:12]} 5. Bd3 {[%emt 0:00:42]} Re8 {[%emt 0:01:51]} 6. Nge2 {[%emt 0:03:59]} d5 {[%emt 0:00:30]} 7. a3 {[%emt 0:01:27]} Bf8 {[%emt 0:00:35]} 8. O-O {[%emt 0:02:25]} Nbd7 {[%emt 0:03:15]} 9. cxd5 {[%emt 0:14:44] The position is equal.} exd5 {[%emt 0:00:57]} 10. Nf4 {[%emt 0:00:07]} Nb6 {[%emt 0:07:17]} 11. Qc2 {[%emt 0:06:08]} a5 {[%emt 0:03:59]} 12. b3 {[%emt 0:01:31]} g6 {[%emt 0:13:33]} 13. a4 {[%emt 0:06:58]} c6 {[%emt 0:13:09]} 14. Re1 {[%emt 0:07:07]} Bd7 {[%emt 0:02:25]} 15. Bb2 {[%emt 0:01:39]} Bb4 {[%emt 0:03:05]} 16. f3 {[%emt 0:07:57]} Rc8 {[%emt 0:02:31]} 17. Qf2 {[%emt 0:00:22]} c5 {[%emt 0:09:16]} (17... Na8 $11) 18. dxc5 $14 {[%emt 0:03:51]} Rxc5 {[%emt 0:00:05]} 19. Rec1 {[%emt 0:01:49]} ({Better is} 19. Nb5 $16) 19... Qe7 {[%emt 0:01:52]} 20. Nb5 {[%emt 0:09:56]} Bc6 {[%emt 0:03:10]} ({Black should try} 20... Rxc1+ $14 21. Bxc1 (21. Rxc1 Rc8 $14) 21... Bc5) 21. Bd4 {[%emt 0:01:49]} Rxc1+ {[%emt 0:00:43]} 22. Rxc1 {[%emt 0:00:01]} Nbd7 {[%emt 0:00:08]} 23. Qc2 {[%emt 0:04:26]} Rd8 {[%emt 0:08:43]} 24. Bf1 {[%emt 0:02:21]} Bxb5 {[%emt 0:00:21]} 25. Bxb5 {[%emt 0:00:16]} Ba3 {[%emt 0:00:05]} 26. Rd1 {[%emt 0:00:52]} Bc5 {[%emt 0:00:11]} 27. Qc3 {[%emt 0:05:06]} Bxd4 {[%emt 0:24:44]} 28. Rxd4 {[%emt 0:00:14]} Nf8 {[%emt 0:00:00][%cal Od8c8]} 29. Kf2 {[%emt 0:02:15]} (29. Qxa5 $2 {is the wrong capture.} Qxe3+ 30. Kf1 Qxd4 $19) 29... b6 {[%emt 0:00:00]} 30. Qc6 {[%emt 0:02:16]} (30. Rd1 $14) 30... Rd6 $11 {[%emt 0:00:00] Black is weak on the light squares} 31. Qa8 {[%emt 0:00:47]} Qe5 {[%emt 0:00:00]} 32. Bc6 {[%emt 0:02:16]} (32. h3 $11) 32... Kg7 $15 {[%emt 0:00:00]} 33. Bxd5 {[%emt 0:01:33]} g5 {[%emt 0:00:00]} (33... N8d7 $1 $15) 34. Nd3 $11 {[%emt 0:01:46]} Qxh2 {[%emt 0:00:00]} 35. Bc4 $1 {[%emt 0:01:44] Hoping for Qb8.} Rxd4 {[%emt 0:00:00]} 36. exd4 {[%emt 0:00:01][%cal Be3d4,Bd4d5][%mdl 32]} Qd6 {[%emt 0:00:00]} 37. d5 {[%emt 0:00:35]} g4 {[%emt 0:00:00] ...Ng6 is the strong threat.} 38. f4 $2 {[%emt 0:00:52][%mdl 8192]} (38. Qc6 $11 gxf3 39. Qxd6 Ne4+ 40. Kxf3 Nxd6 41. Ke3) 38... Qe7 $19 {[%emt 0:00:00][%cal Og4g3]} 39. Qb8 $2 {[%emt 0:01:23]} (39. d6 Ne4+ (39... Qxd6 $2 40. Qb7 $17) 40. Kf1 Nxd6 41. Qd5) 39... N8d7 {[%emt 0:00:00] ( -> ...g3+)} 40. Qc7 {[%emt 0:00:29] [#]} g3+ $1 {[%emt 0:01:02][%mdl 512] Black mates.} 41. Kxg3 {[%emt 0:01:56]} (41. Kf3 Qe4+) 41... Qe3+ {[%emt 0:00:06]} 42. Kh4 {[%emt 0:00:07] [#]} Ne4 $1 {[%emt 0:01:31] Weighted Error Value: White=0.39/Black=0.09 (flawless) .  Loses game:     	White=1     	---        Mistake:       	White=4     	Black=3      Inaccurate:     	White=3     	Black=2      OK:         	White=8     	Black=11     Best:        	White=3     	Black=3      Strong:       	White=1     	---} 0-1

[Event "III Menorca Open-A 2024"]
[Site "Ciutadella Menorca"]
[Date "2024.04.02"]
[Round "1.10"]
[White "Murzin, Volodar"]
[Black "Valdepenas Octavio, Javier"]
[Result "1-0"]
[ECO "D02"]
[WhiteElo "2632"]
[BlackElo "2183"]
[Annotator "TA"]
[PlyCount "51"]
[EventDate "2024.04.02"]
[EventType "swiss"]
[EventCountry "ESP"]
[SourceTitle "playchess.com"]
[Source "ChessBase"]
[SourceQuality "1"]
[TimeControl "5400+30"]

{[%evp 15,51,21,14,3,45,37,52,50,75,74,91,88,108,109,110,112,129,109,154,143,188,171,314,306,436,459,547,360,723,778,850,813,867,855,986,727,2151,2006]} 1. d4 {[%emt 0:02:32]} d5 {[%emt 0:00:22]} 2. Nf3 {[%emt 0:00:12]} Nf6 {[%emt 0:00:24]} 3. Bf4 {[%emt 0:00:05]} e6 {[%emt 0:00:41]} 4. e3 {[%emt 0:00:24]} c5 {[%emt 0:00:22]} 5. Nbd2 {[%emt 0:00:13]} Nc6 {[%emt 0:00:13]} 6. c3 {[%emt 0:00:14]} Be7 {[%emt 0:00:18]} 7. Bd3 {[%emt 0:01:55]} O-O {[%emt 0:01:43]} 8. Ne5 {[%emt 0:01:07]} Nd7 {[%emt 0:00:20]} 9. Ndf3 {[%emt 0:01:27]} (9. Nxd7 {simplifies} Bxd7 10. h4 h6 11. Nf3) 9... cxd4 {[%emt 0:10:59]} 10. Nxd7 {[%emt 0:01:23]} Bxd7 {[%emt 0:05:04]} 11. exd4 {[%emt 0:00:07] White is slightly better.} (11. Nxd4 Qb6 $11) 11... a6 {[%emt 0:09:33]} 12. h4 {[%emt 0:05:30][%cal Od3h7,Bh2h4,Bh4h5][%mdl 32]} f5 {[%emt 0:03:58]} 13. Qe2 {[%emt 0:10:43]} Qe8 {[%emt 0:03:17]} 14. h5 {[%emt 0:06:38]} Nd8 {[%emt 0:04:11]} 15. O-O-O {[%emt 0:15:28]} b5 {[%emt 0:08:55][%cal Bb7b5,Bb5b4][%mdl 32]} 16. Kb1 {[%emt 0:05:40] White is much more active.} Nf7 {[%emt 0:10:51]} 17. Rde1 {[%emt 0:16:57]} a5 {[%emt 0:19:35]} 18. Rhg1 {[%emt 0:09:42] g4 would now be deadly.} Nd6 {[%emt 0:01:15]} (18... Bd6 $142) 19. Ne5 $18 {[%emt 0:01:46]} Bc8 {[%emt 0:01:52]} (19... Ne4 {keeps fighting.} 20. Nxd7 (20. f3 b4 $18) 20... Qxd7 21. Bxb5 (21. f3 b4 $18) 21... Qb7) 20. g4 {[%emt 0:00:29]} b4 {[%emt 0:08:33]} 21. gxf5 {[%emt 0:05:22]} Rxf5 $2 {[%emt 0:00:13] [#]} (21... Nxf5 22. Qg4 Bf6) 22. h6 $1 {[%emt 0:02:33] White is clearly winning.} g6 {[%emt 0:01:38] [#]} (22... Bf6 23. hxg7) 23. Nxg6 $1 {[%emt 0:00:21][%mdl 512]} hxg6 {[%emt 0:00:30]} 24. Bxd6 {[%emt 0:00:05][%cal Bf4d6,Bd6e5,Be5c7][%mdl 32]} ({Less strong is} 24. Bxf5 Nxf5 25. h7+ Kxh7 $16) 24... e5 {[%emt 0:02:23]} 25. Bxe5 {[%emt 0:05:07] Strongly threatening h7+.} Kh7 {[%emt 0:02:00]} 26. Bc7 {[%emt 0:00:30] Black did not feel at home in the position after the opening.   Weighted Error Value: White=0.05 (flawless) /Black=0.53.  Mistake:       	---       	Black=3      Inaccurate:     	---       	Black=3      OK:         	White=11    	---} 1-0

[Event "III Menorca Open-A 2024"]
[Site "Ciutadella Menorca"]
[Date "2024.04.02"]
[Round "1.11"]
[White "Meessen, Rudolf"]
[Black "Aryan Chopra"]
[Result "0-1"]
[ECO "D00"]
[WhiteElo "2171"]
[BlackElo "2630"]
[Annotator "TA"]
[PlyCount "80"]
[EventDate "2024.04.02"]
[EventType "swiss"]
[EventCountry "ESP"]
[SourceTitle "playchess.com"]
[Source "ChessBase"]
[SourceQuality "1"]
[TimeControl "5400+30"]

{[%evp 9,79,-10,0,0,-12,-30,-33,-34,0,-20,30,33,27,53,53,26,18,29,12,0,37,33,31,-82,-82,-104,0,-25,-60,-36,-52,-26,-11,-28,-18,-43,-50,-115,-116,-108,-120,-152,-152,-157,-157,-148,-141,-140,-160,-289,-189,-890,-883,-830,-843,-791,-786,-972,-972,-29988,-29989,-29990,-29991,-29991,-29992,-29993,-29994,-29994,-29995,-29995,-29996,-29999]} 1. d4 {[%emt 0:00:40]} Nf6 {[%emt 0:00:08]} 2. Nc3 {[%emt 0:00:18]} d5 {[%emt 0:00:06]} 3. Bf4 {[%emt 0:00:05]} e6 {[%emt 0:00:15]} 4. Nb5 {[%emt 0:00:19]} Na6 {[%emt 0:00:11]} 5. e3 {[%emt 0:00:07]} Be7 {[%emt 0:00:36]} 6. h4 {[%emt 0:00:06]} O-O {[%emt 0:00:41]} 7. h5 {[%emt 0:01:01]} h6 {[%emt 0:00:31]} 8. Nf3 {[%emt 0:00:38] Black is slightly better.} Ne4 {[%emt 0:07:30]} 9. Bd3 {[%emt 0:02:56]} c5 {[%emt 0:17:12]} (9... c6 $142 10. Nc3 Nxc3 11. bxc3 Nb8) 10. c3 $11 {[%emt 0:02:12]} Bd7 {[%emt 0:01:19] ...c4 would now be deadly.} 11. a4 {[%emt 0:00:09]} Be8 {[%emt 0:06:14]} 12. g4 {[%emt 0:08:31]} cxd4 {[%emt 0:08:35]} 13. exd4 {[%emt 0:01:36]} f5 {[%emt 0:00:07]} 14. Ne5 {[%emt 0:03:50]} Bg5 {[%emt 0:03:03]} 15. Bxg5 {[%emt 0:07:53]} Qxg5 {[%emt 0:00:14]} 16. Bxe4 {[%emt 0:05:13]} (16. Qc1 $14 {keeps the upper hand.}) 16... fxe4 $17 {[%emt 0:00:15]} 17. Rh3 {[%emt 0:08:59]} Bc6 {[%emt 0:11:40]} (17... Rf4 $17 {[%cal Oa6c5] Strongly threatening ...Nc5!} 18. Rg3 Rd8) 18. b4 {[%emt 0:02:44] Wards off Nc5} Bxb5 $40 {[%emt 0:01:53][%mdl 128] Black is up to no good.} 19. axb5 {[%emt 0:00:30]} Nc7 {[%emt 0:00:06]} 20. Qe2 {[%emt 0:00:47]} Rf4 {[%emt 0:04:43]} 21. b6 $1 {[%emt 0:03:08]} axb6 {[%emt 0:00:19]} 22. Rxa8+ {[%emt 0:00:49]} Nxa8 {[%emt 0:00:02]} 23. Kd1 {[%emt 0:10:41] White is now going downhill.} (23. c4 $15) 23... Nc7 {[%emt 0:02:31]} 24. f3 {[%emt 0:01:47]} Qf6 {[%emt 0:06:26]} (24... Rf8 {seems wilder.} 25. Kc2 Ra8 26. Kb2 Nb5) 25. Nd7 {[%emt 0:01:24]} Qf7 {[%emt 0:04:32]} 26. Ne5 {[%emt 0:00:05]} Qe8 {[%emt 0:00:22]} 27. Qe3 {[%emt 0:13:04]} Qa4+ {[%emt 0:02:53]} 28. Ke1 {[%emt 0:00:19]} Rf8 {[%emt 0:01:35] aiming for ...Qa1+.} 29. g5 {[%emt 0:01:13] [#]} (29. Ng6 $17 Ra8 30. fxe4) 29... Qc2 $1 $19 {[%emt 0:04:59]} 30. gxh6 $2 {[%emt 0:01:31]} (30. Qd2 Qb1+ (30... Qxd2+ 31. Kxd2 hxg5 32. Rg3 $19) 31. Kf2) 30... Ra8 {[%emt 0:00:48]} 31. Qd2 {[%emt 0:03:07] [#]} Qb1+ $1 {[%emt 0:00:45]} 32. Qd1 {[%emt 0:03:33]} Qb2 {[%emt 0:00:07] ( -> ...Ra2)} 33. Rg3 {[%emt 0:03:59]} Ra2 {[%emt 0:05:37][%csl Ga2][%cal Rb2f2]} (33... Qxc3+ 34. Qd2 Ra1+ 35. Ke2 exf3+ 36. Rxf3 Qxd2+ 37. Kxd2 Ra2+ (37... gxh6 38. Rg3+ Kf8 39. Rg6 $14) 38. Kc1 gxh6 39. Rf7 $15) 34. Rxg7+ {[%emt 0:03:11]} Kf8 {[%emt 0:00:25][%csl Ga2][%cal Rb2f2] Black mates.} 35. Nd7+ {[%emt 0:08:37]} Ke8 {[%emt 0:00:05][%csl Ga2][%cal Rb2f2]} 36. Nf6+ {[%emt 0:00:09]} Kd8 {[%emt 0:00:05][%csl Ga2][%cal Rb2f2]} 37. Ng4 {[%emt 0:00:29]} Qg2 {[%emt 0:00:21][%cal Rg2h1]} 38. Rg8+ {[%emt 0:02:48]} Ne8 {[%emt 0:00:05]} 39. Rxe8+ {[%emt 0:01:01]} Kxe8 {[%emt 0:00:05][%cal Rg2g1]} 40. h7 {[%emt 0:00:23]} Qg1# {[%emt 0:00:06] Weighted Error Value: White=0.47/Black=0.09 (flawless) .  Mistake:       	White=4     	Black=2      Inaccurate:     	White=1     	Black=1      OK:         	White=11    	Black=10     Best:        	---       	Black=1      Strong:       	White=1     	Black=1} 0-1

[Event "III Menorca Open-A 2024"]
[Site "Ciutadella Menorca"]
[Date "2024.04.02"]
[Round "1.12"]
[White "Dardha, Daniel"]
[Black "Toolin, Christopher"]
[Result "1-0"]
[ECO "A13"]
[WhiteElo "2628"]
[BlackElo "2184"]
[Annotator "TA"]
[PlyCount "75"]
[EventDate "2024.04.02"]
[EventType "swiss"]
[EventCountry "ESP"]
[SourceTitle "playchess.com"]
[Source "ChessBase"]
[SourceQuality "1"]
[TimeControl "5400+30"]

{[%evp 18,75,31,25,26,31,54,0,33,29,18,6,20,12,12,24,8,19,14,16,25,27,26,22,14,8,21,18,22,20,97,55,100,45,126,113,124,105,99,30,59,60,109,110,185,178,301,187,290,293,975,955,29996,29995,29995,29996,29997,29996,29996,29996]} 1. Nf3 {[%emt 0:00:08]} Nf6 {[%emt 1:31:00]} 2. c4 {[%emt 0:00:22]} e6 {[%emt 0:00:00]} 3. e3 {[%emt 0:00:18]} d5 {[%emt 0:00:00]} 4. b3 {[%emt 0:00:32]} Be7 {[%emt 0:00:00]} 5. Bb2 {[%emt 0:00:06]} O-O {[%emt 0:00:00]} 6. Nc3 {[%emt 0:00:04]} b6 {[%emt 0:00:00]} 7. cxd5 {[%emt 0:01:25]} exd5 {[%emt 0:00:00]} 8. Be2 {[%emt 0:01:27]} c5 {[%emt 0:00:00]} 9. d4 {[%emt 0:00:40]} Nc6 {[%emt 0:00:00]} 10. O-O {[%emt 0:01:28]} Be6 {[%emt 0:00:00]} 11. Rc1 {[%emt 0:03:40]} Rc8 {[%emt 0:00:00]} 12. Na4 {[%emt 0:07:20]} ({Better is} 12. Ba6 $14) 12... Ne4 {[%emt 0:00:00][%cal Oc5c4] The position is equal.} 13. dxc5 {[%emt 0:02:41]} bxc5 {[%emt 0:00:00]} 14. Nd2 {[%emt 0:00:57]} Nxd2 {[%emt 0:00:00]} 15. Qxd2 {[%emt 0:00:43]} c4 {[%emt 0:00:00]} 16. bxc4 {[%emt 0:04:10]} dxc4 {[%emt 0:00:00]} 17. Qxd8 {[%emt 0:00:06]} Rfxd8 {[%emt 0:00:00]} (17... Nxd8 {simplifies} 18. Rfd1 Nb7 19. g4 Rfe8) 18. Bxc4 {[%emt 0:02:57]} Bxc4 {[%emt 0:00:00]} 19. Rxc4 {[%emt 0:00:05]} Nb4 {[%emt 0:00:00]} 20. Rxc8 {[%emt 0:11:22]} Rxc8 {[%emt 0:00:00]} 21. Bd4 {[%emt 0:01:32]} a6 {[%emt 0:00:00]} 22. Nb6 {[%emt 0:08:51]} Rc6 {[%emt 0:00:00]} 23. a4 {[%emt 0:02:19][%cal Ba2a4,Ba4a5][%mdl 32]} Bf6 {[%emt 0:00:00]} (23... a5 $11 {remains equal.}) 24. a5 {[%emt 0:07:23]} Rc2 {[%emt 0:00:00]} 25. Rd1 {[%emt 0:05:41]} (25. Bxf6 $16 gxf6 26. h3) 25... Nc6 {[%emt 0:01:42]} (25... Be7 $14) 26. Bxf6 $16 {[%emt 0:00:13]} gxf6 {[%emt 0:00:10][%mdl 4096] Endgame. KRN-KRN} 27. g4 {[%emt 0:03:47]} Nxa5 {[%emt 0:02:23]} 28. Rd8+ {[%emt 0:02:44]} Kg7 {[%emt 0:00:15]} 29. Ra8 {[%emt 0:00:09]} Rc6 {[%emt 0:07:09] [#]} (29... Nc4 $14 30. Nd5 (30. Rxa6 Ne5 $11) 30... f5) 30. Nd5 $1 {[%emt 0:00:17] Ne7 is the strong threat.} ({Worse is} 30. Rxa6 Nc4 31. Nxc4 Rxa6 $15) 30... Nb3 {[%emt 0:02:11]} (30... h5 $16 {keeps fighting.}) 31. Ne7 $18 {[%emt 0:03:07]} Rc1+ {[%emt 0:00:25]} 32. Kg2 {[%emt 0:00:06] White threatens Rg8+ and mate.} h6 {[%emt 0:00:35]} (32... h5 $142 33. Nf5+ (33. gxh5 Rc5 $16) (33. Rxa6 hxg4 34. Ra8 Rc7 $14) 33... Kg6 34. Rg8+ (34. Rxa6 hxg4 35. Ne7+ Kg7 $14) 34... Kh7 35. Rg7+ Kh8) 33. Nf5+ {[%emt 0:00:58]} ({Not} 33. Rxa6 h5 34. gxh5 Rc5 $16) 33... Kg6 $2 {[%emt 0:00:37]} (33... Kh7 34. Rxa6 Kg6) 34. Rh8 {[%emt 0:00:59][%cal Oh2h4] [#] Threatening mate with h4!} h5 {[%emt 0:00:32]} 35. Rh6+ {[%emt 0:00:38] White mates.} Kg5 {[%emt 0:00:02]} 36. Rxh5+ {[%emt 0:00:10]} Kg6 {[%emt 0:00:47]} 37. Rh6+ {[%emt 0:00:07]} Kg5 {[%emt 0:00:04]} 38. Kh3 {[%emt 0:00:18] Weighted Error Value: White=0.10 (very precise) /Black=0.60.  Mistake:       	White=2     	Black=6      Inaccurate:     	White=3     	Black=4      OK:         	White=7     	Black=3      Best:        	White=3     	Black=3      Strong:       	White=1     	---} 1-0

[Event "III Menorca Open-A 2024"]
[Site "Ciutadella Menorca"]
[Date "2024.04.02"]
[Round "1.13"]
[White "Aniruddh Chatterjee"]
[Black "Chigaev, Maksim"]
[Result "0-1"]
[ECO "A30"]
[WhiteElo "2182"]
[BlackElo "2617"]
[Annotator "TA"]
[PlyCount "84"]
[EventDate "2024.04.02"]
[EventType "swiss"]
[EventCountry "ESP"]
[SourceTitle "playchess.com"]
[Source "ChessBase"]
[SourceQuality "1"]
[TimeControl "5400+30"]

{[%evp 19,84,-14,-15,-44,-38,-31,-30,-44,-37,-31,-22,-20,-27,-63,-42,-41,-18,-20,-23,-17,0,0,-12,-6,0,-11,-12,-12,-5,-48,-31,-60,-52,-70,-71,-105,-112,-89,-89,-99,-54,-81,-59,-64,-27,-650,-482,-475,-474,-473,-456,-456,-454,-442,-427,-432,-443,-437,-429,-560,-553,-553,-545,-531,-531,-509,-481]} 1. c4 {[%emt 0:00:17]} Nf6 {[%emt 0:01:16]} 2. Nf3 {[%emt 0:00:12]} b6 {[%emt 0:00:50]} 3. g3 {[%emt 0:02:25]} Bb7 {[%emt 0:00:11]} 4. Bg2 {[%emt 0:00:05]} g6 {[%emt 0:00:34]} 5. b3 {[%emt 0:01:07]} Bg7 {[%emt 0:00:40]} 6. Bb2 {[%emt 0:00:05]} O-O {[%emt 0:00:30]} 7. O-O {[%emt 0:00:51]} c5 {[%emt 0:00:08]} 8. d4 {[%emt 0:05:41]} cxd4 {[%emt 0:00:47]} 9. Nxd4 {[%emt 0:02:53]} Bxg2 {[%emt 0:00:51]} 10. Kxg2 {[%emt 0:00:06]} d5 {[%emt 0:00:43]} 11. cxd5 {[%emt 0:01:05]} Qxd5+ {[%emt 0:01:41]} 12. Nf3 {[%emt 0:00:17]} Qb7 {[%emt 0:00:15]} 13. Na3 {[%emt 0:04:40] Black has an edge.} Na6 {[%emt 0:01:00]} 14. Rc1 {[%emt 0:03:50]} Nb4 {[%emt 0:06:32]} 15. Rc4 {[%emt 0:03:52]} Rfd8 {[%emt 0:09:44]} (15... Nxa2 16. Qb1 b5 17. Nxb5 $11) 16. Qa1 {[%emt 0:01:20] [#]} Nd3 {[%emt 0:00:47] Black is more active.} 17. Bd4 {[%emt 0:07:57] [#]} (17. exd3 Rxd3 18. Kg1 (18. Rf4 $2 Nh5 $19) 18... Qxf3 $17) 17... e5 $1 {[%emt 0:12:47]} 18. Bxe5 {[%emt 0:08:44]} Nxe5 {[%emt 0:00:12]} 19. Qxe5 {[%emt 0:00:03]} Re8 {[%emt 0:04:10]} 20. Qc7 {[%emt 0:24:44]} Qxc7 {[%emt 0:00:38]} 21. Rxc7 {[%emt 0:00:07]} Rxe2 {[%emt 0:00:14][%cal Of6d5]} 22. Rc2 {[%emt 0:08:37]} Rxc2 {[%emt 0:01:37]} 23. Nxc2 {[%emt 0:00:05]} Rc8 {[%emt 0:00:02]} 24. Ne3 {[%emt 0:00:29]} Bh6 {[%emt 0:00:07]} 25. Nc4 {[%emt 0:00:54]} b5 {[%emt 0:02:20]} 26. Nce5 {[%emt 0:05:12]} Rc2 {[%emt 0:00:38]} 27. Rd1 {[%emt 0:01:41] [#]} Be3 $1 {[%emt 0:03:23]} 28. Rd8+ {[%emt 0:01:10]} Kg7 {[%emt 0:00:42]} 29. Rb8 {[%emt 0:00:06]} Rxf2+ {[%emt 0:01:01]} 30. Kh3 {[%emt 0:16:55]} g5 {[%emt 0:02:53] And now ...h5 would win.} 31. Rb7 {[%emt 0:00:00]} g4+ {[%emt 0:00:38]} (31... Rxa2 $2 {perishes.} 32. Rxf7+ (32. Nxf7 $2 {is the wrong capture.} g4+ 33. Kh4 gxf3 $19) 32... Kg8 33. Rxf6 $18) (31... Rxf3 $5 32. Nxf3 g4+ 33. Kg2 gxf3+ 34. Kxf3 Bb6 $17) 32. Kh4 $2 {[%emt 0:00:00][%mdl 8192] White does not recover from this.} (32. Nxg4 $11 Nxg4 (32... Rxf3 33. Kg2 $14) 33. Kxg4) 32... Rxf3 {[%emt 0:00:14] Black is clearly winning.} 33. Rxf7+ {[%emt 0:00:00]} Kg8 {[%emt 0:00:05]} 34. Rb7 {[%emt 0:00:00]} Rf5 {[%emt 0:00:54][%csl Gf6][%cal Rf5h5]} 35. Rb8+ {[%emt 0:00:00]} Kg7 {[%emt 0:00:02][%csl Gf5][%cal Re3g5]} 36. Rb7+ {[%emt 0:00:00]} Kf8 {[%emt 0:00:04][%csl Gf6][%cal Rf5h5]} 37. Nd7+ {[%emt 0:00:00]} Nxd7 {[%emt 0:00:12]} 38. Rxd7 {[%emt 0:00:00]} Rf2 {[%emt 0:50:08][%csl LRa2,LRh2]} 39. Rd5 {[%emt 0:00:00]} Rxh2+ {[%emt 0:00:00]} 40. Kxg4 {[%emt 0:00:00]} Rxa2 {[%emt 0:00:00]} 41. Rxb5 {[%emt 0:00:00]} Bb6 {[%emt 0:00:00]} 42. Rd5 {[%emt 0:00:00]} Ra5 {[%emt 0:00:00] Weighted Error Value: White=0.29 (precise) /Black=0.13 (very precise) .  Loses game:     	White=1     	---        Inaccurate:     	White=6     	Black=2      OK:         	White=7     	Black=11     Best:        	White=5     	Black=5      Strong:       	---       	Black=1      Brilliant:      	---       	Black=1} 0-1